Workbook

Sheet Dados e gráfico de custos
C2: Análise de Custos
C3: GRÁFICO DE PARETO
C4: ANÁLISE DE CUSTOS | H4: CENTRO DE CUSTOS
C5: Centro de custos | D5: Custo anual | E5: Percentual do total | F5: Percentual acumulado
C6: Peças e materiais | D6: R$ 1,325,000.00 | E6: =IFERROR(Dados[[#This Row],[Custo anual ]]/SUM(Dados[[Custo anual ]]), "") -> 31.17% | F6: =IFERROR(SUM(INDEX(Dados[Percentual do total],1):Dados[[#This Row],[Percentual do total]]), "") -> 31.17%
C7: Equipamentos de fabricação | D7: R$ 900,500.00 | E7: =IFERROR(Dados[[#This Row],[Custo anual ]]/SUM(Dados[[Custo anual ]]), "") -> 21.19% | F7: =IFERROR(SUM(INDEX(Dados[Percentual do total],1):Dados[[#This Row],[Percentual do total]]), "") -> 52.36%
C8: Salários | D8: R$ 575,000.00 | E8: =IFERROR(Dados[[#This Row],[Custo anual ]]/SUM(Dados[[Custo anual ]]), "") -> 13.53% | F8: =IFERROR(SUM(INDEX(Dados[Percentual do total],1):Dados[[#This Row],[Percentual do total]]), "") -> 65.89%
C9: Manutenção | D9: R$ 395,000.00 | E9: =IFERROR(Dados[[#This Row],[Custo anual ]]/SUM(Dados[[Custo anual ]]), "") -> 9.29% | F9: =IFERROR(SUM(INDEX(Dados[Percentual do total],1):Dados[[#This Row],[Percentual do total]]), "") -> 75.18%
C10: Aluguel do escritório | D10: R$ 295,000.00 | E10: =IFERROR(Dados[[#This Row],[Custo anual ]]/SUM(Dados[[Custo anual ]]), "") -> 6.94% | F10: =IFERROR(SUM(INDEX(Dados[Percentual do total],1):Dados[[#This Row],[Percentual do total]]), "") -> 82.12%
C11: Aluguel do armazém | D11: R$ 250,000.00 | E11: =IFERROR(Dados[[#This Row],[Custo anual ]]/SUM(Dados[[Custo anual ]]), "") -> 5.88% | F11: =IFERROR(SUM(INDEX(Dados[Percentual do total],1):Dados[[#This Row],[Percentual do total]]), "") -> 88.00%
C12: Seguro | D12: R$ 180,000.00 | E12: =IFERROR(Dados[[#This Row],[Custo anual ]]/SUM(Dados[[Custo anual ]]), "") -> 4.23% | F12: =IFERROR(SUM(INDEX(Dados[Percentual do total],1):Dados[[#This Row],[Percentual do total]]), "") -> 92.24%
C13: Benefícios e previdência | D13: R$ 130,000.00 | E13: =IFERROR(Dados[[#This Row],[Custo anual ]]/SUM(Dados[[Custo anual ]]), "") -> 3.06% | F13: =IFERROR(SUM(INDEX(Dados[Percentual do total],1):Dados[[#This Row],[Percentual do total]]), "") -> 95.29%
C14: Veículos | D14: R$ 125,000.00 | E14: =IFERROR(Dados[[#This Row],[Custo anual ]]/SUM(Dados[[Custo anual ]]), "") -> 2.94% | F14: =IFERROR(SUM(INDEX(Dados[Percentual do total],1):Dados[[#This Row],[Percentual do total]]), "") -> 98.24%
C15: Pesquisa | D15: R$ 75,000.00 | E15: =IFERROR(Dados[[#This Row],[Custo anual ]]/SUM(Dados[[Custo anual ]]), "") -> 1.76% | F15: =IFERROR(SUM(INDEX(Dados[Percentual do total],1):Dados[[#This Row],[Percentual do total]]), "") -> 100.00%
C16: Total | D16: =SUBTOTAL(109,Dados[[Custo anual ]]) -> R$ 4,250,500.00 | E16: =SUBTOTAL(109,Dados[Percentual do total]) -> 100.00%
